fUSD/lending_fUSD_20240802
["ID","MTS","AMOUNT","RATE_DAILY","PERIOD"]
[333900625,1722613844377,-500.0,0.0001863,2]
[333900626,1722613844387,-500.0,0.0001863,2]
[333900627,1722613844396,-521.48,0.0001863,2]
[333900628,1722613844406,-151.0,0.0001863,2]
[333900629,1722613844415,-151.0,0.0001863,2]
[333900630,1722613844424,-151.0,0.0001863,2]
[333900631,1722613844434,-1153.35,0.0001863,2]
[333900632,1722613844444,-1395.17,0.0001863,2]
[333900633,1722613844454,-500.0,0.0001863,2]
[333900634,1722613844463,-151.0,0.0001863,2]
[333900635,1722613844473,-151.0,0.0001863,2]
[333900636,1722613844482,-151.0,0.0001863,2]
[333900637,1722613844491,-956.96,0.0001863,2]
[333900638,1722613844501,-500.0,0.0001863,2]
[333900639,1722613844628,-500.0,0.0001863,2]
[333900640,1722613844638,-731.35,0.0001863,2]
[333900641,1722613844647,-603.94,0.0001863,2]
[333900642,1722613844656,-500.0,0.0001863,2]
[333900643,1722613844666,-645.04,0.0001863,2]
[333900644,1722613844675,-668.6,0.0001863,2]
[333900645,1722613844684,-971.55,0.0001863,2]
[333900646,1722613844693,-1305.78,0.0001863,2]
[333900647,1722613844703,-874.4,0.0001863,2]
[333900648,1722613844712,-500.0,0.0001863,2]
[333900649,1722613844721,-775.45,0.0001863,2]
[333900650,1722613844731,-151.0,0.0001863,2]
[333900651,1722613844740,-950.11,0.0001863,2]
[333900652,1722613844750,-151.0,0.0001863,2]
[333900653,1722613844760,-151.0,0.0001863,2]
[333900654,1722613844772,-416.84766913,0.0001863,2]
[333900655,1722613844781,-500.0,0.0001863,2]
[333900656,1722613844790,-500.0,0.0001863,2]
[333900657,1722613844800,-500.0,0.0001863,2]
[333900658,1722613844810,-1937.35,0.0001863,2]
[333900659,1722613844822,-500.0,0.0001863,2]
[333900660,1722613844832,-1635.56,0.0001863,2]
[333900661,1722613844842,-151.0,0.0001863,2]
[333900662,1722613844851,-151.0,0.0001863,2]
[333900663,1722613844861,-151.0,0.0001863,2]
[333900664,1722613844871,-500.0,0.0001863,2]
[333900665,1722613844881,-151.0,0.0001863,2]
[333900666,1722613844890,-151.0,0.0001863,2]
[333900667,1722613844899,-151.0,0.0001863,2]
[333900668,1722613844910,-500.0,0.0001863,2]
[333900669,1722613844919,-1746.33,0.0001863,2]
[333900670,1722613844929,-1144.43,0.0001863,2]
[333900671,1722613844938,-943.31,0.0001863,2]
[333900672,1722613844948,-500.0,0.0001863,2]
[333900673,1722613844957,-151.0,0.0001863,2]
[333900674,1722613844966,-151.0,0.0001863,2]
[333900675,1722613844976,-500.0,0.0001863,2]
[333900676,1722613844986,-151.0,0.0001863,2]
[333900677,1722613844995,-1797.88,0.0001863,2]
[333900678,1722613845005,-500.0,0.0001863,2]
[333900679,1722613845014,-1653.07,0.0001863,2]
[333900680,1722613845023,-500.0,0.0001863,2]
[333900681,1722613845033,-151.0,0.0001863,2]
[333900682,1722613845044,-500.0,0.0001863,2]
[333900683,1722613845054,-151.0,0.0001863,2]
[333900684,1722613845064,-151.0,0.0001863,2]
[333900685,1722613845076,-500.0,0.0001863,2]
[333900686,1722613845085,-550.35,0.0001863,2]
[333900687,1722613845095,-500.0,0.0001863,2]
[333900688,1722613845104,-500.0,0.0001863,2]
[333900689,1722613845113,-500.0,0.0001863,2]
[333900690,1722613845124,-372.68624496,0.0001863,2]
[333900691,1722613845134,-151.0,0.0001863,2]
[333900692,1722613845143,-151.0,0.0001863,2]
[333900693,1722613845153,-151.0,0.0001863,2]
[333900694,1722613845162,-1211.12,0.0001863,2]
[333900695,1722613845172,-151.0,0.0001863,2]
[333900696,1722613845181,-500.0,0.0001863,2]
[333900697,1722613845191,-500.0,0.0001863,2]
[333900698,1722613845200,-230.731831,0.0001863,2]
[333900699,1722613845209,-521.45,0.0001863,2]
[333900700,1722613845219,-230.731831,0.0001863,2]
[333900701,1722613845228,-230.731831,0.0001863,2]
[333900702,1722613845237,-748.07,0.0001863,2]
[333900703,1722613845247,-230.731831,0.0001863,2]
[333900704,1722613845257,-230.731831,0.0001863,2]
[333900705,1722613845267,-272.449273,0.0001863,2]
[333900706,1722613845277,-230.731831,0.0001863,2]
[333900708,1722613845286,-272.449273,0.0001863,2]
[333900710,1722613845296,-272.449273,0.0001863,2]
[333900711,1722613845306,-500.0,0.0001863,2]
[333900712,1722613845315,-749.86,0.0001863,2]
[333900713,1722613845329,-1111.53,0.0001863,2]
[333900714,1722613845339,-272.449273,0.0001863,2]
[333900715,1722613845349,-272.449273,0.0001863,2]
[333900716,1722613845358,-272.449273,0.0001863,2]
[333900717,1722613845367,-500.0,0.0001863,2]
[333900718,1722613845376,-500.0,0.0001863,2]
[333900719,1722613845386,-500.0,0.0001863,2]
[333900720,1722613845396,-1116.25,0.0001863,2]
[333900721,1722613845405,-500.0,0.0001863,2]
[333900722,1722613845415,-500.0,0.0001863,2]
[333900723,1722613845424,-562.45,0.0001863,2]
[333900724,1722613845433,-517.23543651,0.0001863,2]
[333900725,1722613845443,-514.92283077,0.0001863,2]
[333900726,1722613845452,-500.0,0.0001863,2]
[333900727,1722613845461,-500.0,0.0001863,2]
[333900729,1722613845470,-1319.19,0.0001863,2]
[333900731,1722613845480,-500.0,0.0001863,2]
[333900733,1722613845489,-553.12,0.0001863,2]
[333900735,1722613845498,-646.6190793,0.0001863,2]
[333900737,1722613845508,-500.0,0.0001863,2]
[333900739,1722613845517,-1171.6,0.0001863,2]
[333900741,1722613845527,-500.0,0.0001863,2]
[333900744,1722613845536,-500.0,0.0001863,2]
[333900746,1722613845546,-2897.36,0.0001863,2]
[333900748,1722613845555,-500.0,0.0001863,2]
[333900750,1722613845564,-1190.27,0.0001863,2]
[333900752,1722613845577,-294.980922,0.0001863,2]
[333900754,1722613845586,-294.980922,0.0001863,2]
[333900755,1722613845595,-294.980922,0.0001863,2]
[333900756,1722613845605,-500.0,0.0001863,2]
[333900757,1722613845614,-500.0,0.0001863,2]
[333900759,1722613845624,-500.0,0.0001863,2]
[333900761,1722613845633,-2347.48,0.0001863,2]
[333900763,1722613845642,-500.0,0.0001863,2]
[333900765,1722613845652,-500.0,0.0001863,2]
[333900767,1722613845664,-500.0,0.0001863,2]
[333900769,1722613845674,-151.0,0.0001863,2]
[333900771,1722613845683,-500.0,0.0001863,2]
[333900773,1722613845692,-151.0,0.0001863,2]
[333900775,1722613845701,-500.0,0.0001863,2]
[333900777,1722613845711,-151.0,0.0001863,2]
[333900779,1722613845720,-500.0,0.0001863,2]
[333900781,1722613845729,-2183.82,0.0001863,2]
[333900783,1722613845739,-500.0,0.0001863,2]
[333900785,1722613845749,-500.0,0.0001863,2]
[333900786,1722613845758,-500.0,0.0001863,2]
[333900788,1722613845770,-705.49,0.0001863,2]
[333900790,1722613845780,-500.0,0.0001863,2]
[333900792,1722613845790,-1768.86,0.0001863,2]
[333900794,1722613845799,-615.81,0.0001863,2]
[333900796,1722613845812,-500.0,0.0001863,2]
[333900798,1722613845824,-653.99,0.0001863,2]
[333900800,1722613845833,-500.0,0.0001863,2]
[333900803,1722613845845,-500.0,0.0001863,2]
[333900805,1722613845856,-500.0,0.0001863,2]
[333900807,1722613845865,-500.0,0.0001863,2]
[333900808,1722613845875,-1975.32,0.0001863,2]
[333900810,1722613845884,-500.0,0.0001863,2]
[333900812,1722613845893,-2298.75,0.0001863,2]
[333900814,1722613845903,-500.0,0.0001863,2]
[333900816,1722613845912,-1846.30649054,0.0001863,2]
[333900831,1722613846056,-768.49350946,0.0001863,2]
[333900834,1722613846068,-153.632,0.0001863,2]
[333900836,1722613846078,-500.0,0.0001863,2]
[333900838,1722613846087,-500.0,0.0001863,2]
[333900840,1722613846096,-500.0,0.0001863,2]
[333900841,1722613846106,-500.0,0.0001863,2]
[333900844,1722613846116,-1241.63,0.0001863,2]
[333900846,1722613846126,-500.0,0.0001863,2]
[333900847,1722613846135,-500.0,0.0001863,2]
[333900848,1722613846144,-4297.24,0.0001863,2]
[333900849,1722613846153,-500.0,0.0001863,2]
[333900850,1722613846163,-500.0,0.0001863,2]
[333900851,1722613846172,-578.381086,0.0001863,2]
[333900852,1722613846181,-578.381086,0.0001863,2]
[333900853,1722613846191,-578.381086,0.0001863,2]
[333900854,1722613846200,-500.0,0.0001863,2]
[333900855,1722613846209,-500.0,0.0001863,2]
[333900856,1722613846219,-500.0,0.0001863,2]
[333900857,1722613846228,-500.0,0.0001863,2]
[333900858,1722613846237,-3.38398013,0.0001863,2]
[333900859,1722613846250,-1761.48558856,0.0001863,2]
[333900860,1722613846261,-326.94043131,0.0001863,2]
[333900861,1722613846270,-500.0,0.0001863,2]
[333900863,1722613846280,-50.66570706,0.0001863,2]
[333900864,1722613846291,-449.33429294,0.0001863,2]
[333900865,1722613846302,-578.381086,0.0001863,2]
[333900866,1722613846314,-578.381086,0.0001863,2]
[333900867,1722613846326,-922.35,0.0001863,2]
[333900868,1722613846335,-578.381086,0.0001863,2]
[333900869,1722613846345,-2097.71,0.0001863,2]
[333900870,1722613846355,-1450.69,0.0001863,2]
[333900871,1722613846364,-500.0,0.0001863,2]
[333900873,1722613846374,-500.0,0.0001863,2]
[333900875,1722613846383,-151.0,0.0001863,2]
[333900877,1722613846392,-151.0,0.0001863,2]
[333900879,1722613846402,-665.4345786,0.0001863,2]
[333900881,1722613846414,-1018.0654214,0.0001863,2]
[333900883,1722613846423,-151.0,0.0001863,2]
[333900885,1722613846433,-529.61,0.0001863,2]
[333900887,1722613846444,-251.72928854,0.0001863,2]
[333900888,1722613846455,-291.585125,0.0001863,2]
[333900889,1722613846466,-2940.10558646,0.0001863,2]
[333900890,1722613846475,-144.77049537,0.0001863,2]
[333900891,1722613846486,-498.7999998,0.0001863,2]
[333900892,1722613846498,-811.97153213,0.0001863,2]
[333900893,1722613846509,-488.0473927,0.0001863,2]
[333900894,1722613846518,-591.62,0.0001863,2]
[333900895,1722613846527,-500.0,0.0001863,2]
[333900896,1722613846537,-1523.46,0.0001863,2]
[333900897,1722613846547,-500.0,0.0001863,2]
[333900898,1722613846556,-151.0,0.0001863,2]
[333900899,1722613846566,-151.0,0.0001863,2]
[333900900,1722613846577,-500.0,0.0001863,2]
[333900901,1722613846586,-151.0,0.0001863,2]
[333900902,1722613846595,-93.8726073,0.0001863,2]
[333900903,1722613846620,-406.1273927,0.0001863,2]
[333900904,1722613846630,-500.0,0.0001863,2]
[333900905,1722613846639,-500.0,0.0001863,2]
[333900906,1722613846650,-151.0,0.0001863,2]
[333900907,1722613846661,-268.68212095,0.0001863,2]
[333900908,1722613846674,-920.25848403,0.0001863,2]
[333900909,1722613846685,-645.20932158,0.0001863,2]
[333900910,1722613846706,-1046.41007344,0.0001863,2]
[333900911,1722613846715,-500.0,0.0001863,2]
[333900912,1722613846725,-500.0,0.0001863,2]
[333900913,1722613846734,-500.0,0.0001863,2]
[333900914,1722613846743,-500.0,0.0001863,2]
[333900915,1722613846753,-500.0,0.0001863,2]
[333900916,1722613846766,-500.0,0.0001863,2]
[333900917,1722613846775,-2310.45,0.0001863,2]
[333900918,1722613846784,-837.23,0.0001863,2]
[333900919,1722613846794,-500.0,0.0001863,2]
[333900920,1722613846803,-1167.58,0.0001863,2]
[333900921,1722613846814,-2581.47,0.0001863,2]
[333900922,1722613846827,-500.0,0.0001863,2]
[333900923,1722613846848,-3165.48,0.0001863,2]
[333900924,1722613846858,-500.0,0.0001863,2]
[333900925,1722613846868,-185.94813395,0.0001863,2]
[333900926,1722613846880,-604.7,0.0001863,2]
[333900927,1722613846891,-727.43186605,0.0001863,2]
[333900928,1722613846900,-151.0,0.0001863,2]
[333900929,1722613846910,-151.0,0.0001863,2]
[333900930,1722613846919,-151.0,0.0001863,2]
[333900931,1722613846928,-500.0,0.0001863,2]
[333900932,1722613846938,-42.28191735,0.0001863,2]
[333900933,1722613846949,-630.36197754,0.0001863,2]
[333900934,1722613846961,-508.04610511,0.0001863,2]
[333900935,1722613846970,-500.0,0.0001863,2]
[333900936,1722613846980,-440.58804868,0.0001863,2]
[333900937,1722613848115,-1177.87885796,0.00010271,2]
[333900938,1722613848125,-274.57214204,0.0001863,2]
[333900939,1722613848142,-366.31980928,0.0001863,2]
[333900940,1722613848152,-233.06794709,0.0001863,2]
[333900941,1722613848163,-1436.08205291,0.0001863,2]
[333900942,1722613848173,-500.0,0.0001863,2]
[333900943,1722613848182,-500.0,0.0001863,2]
[333900944,1722613848192,-285.867123,0.0001863,2]
[333900945,1722613848202,-609.1,0.0001863,2]
[333900946,1722613848212,-285.867123,0.0001863,2]
[333900947,1722613848222,-285.867123,0.0001863,2]
[333900948,1722613848233,-1360.94,0.0001863,2]
[333900949,1722613848242,-2362.96,0.0001863,2]
[333900950,1722613848252,-500.0,0.0001863,2]
[333900951,1722613848262,-500.0,0.0001863,2]
[333900952,1722613848271,-466.31657809,0.0001863,2]
[333900953,1722613848283,-1253.36342191,0.0001863,2]
[333900954,1722613848293,-285.867123,0.0001863,2]
[333900955,1722613848303,-500.0,0.0001863,2]
[333900956,1722613848312,-285.867123,0.0001863,2]
[333900957,1722613848324,-285.867123,0.0001863,2]
[333900958,1722613848334,-504.27,0.0001863,2]
[333900959,1722613848345,-500.0,0.0001863,2]
[333900960,1722613848355,-773.52017944,0.0001863,2]
[333900961,1722613848387,-261.784,0.0001027,2]
[333900962,1722613848398,-360.78982056,0.0001863,2]
[333900963,1722613848407,-723.82,0.0001863,2]
[333900964,1722613848418,-1134.01,0.0001863,2]
[333900965,1722613848427,-500.0,0.0001863,2]
[333900966,1722613848436,-500.0,0.0001863,2]
[333900967,1722613848446,-1372.74,0.0001863,2]
[333900968,1722613848455,-1230.11,0.0001863,2]
[333900969,1722613848464,-609.47639393,0.0001863,2]
[333900970,1722613848474,-526.32422059,0.0001863,2]
[333900971,1722613848483,-500.0,0.0001863,2]
[333900972,1722613848493,-742.58,0.0001863,2]
[333900973,1722613848503,-500.0,0.0001863,2]
[333900974,1722613848512,-849.87,0.0001863,2]
[333900975,1722613848522,-2037.72,0.0001863,2]
[333900976,1722613848532,-500.0,0.0001863,2]
[333900977,1722613848541,-500.0,0.0001863,2]
[333900978,1722613848551,-511.49,0.0001863,2]
[333900979,1722613848561,-500.0,0.0001863,2]
[333900980,1722613848573,-500.0,0.0001863,2]
[333900981,1722613848738,-500.0,0.0001863,2]
[333900982,1722613848749,-796.72,0.0001863,2]
[333900983,1722613848764,-614.52,0.0001863,2]
[333900984,1722613848773,-2035.96,0.0001863,2]
[333900985,1722613848783,-500.0,0.0001863,2]
[333900986,1722613848792,-885.32,0.0001863,2]
[333900987,1722613848803,-2036.62,0.0001863,2]
[333900988,1722613848812,-500.0,0.0001863,2]
[333900989,1722613848824,-500.0,0.0001863,2]
[333900990,1722613848834,-3115.9,0.0001863,2]
[333900991,1722613848847,-500.0,0.0001863,2]
[333900992,1722613848857,-151.0,0.0001863,2]
[333900993,1722613848867,-500.0,0.0001863,2]
[333900994,1722613848876,-1074.92,0.0001863,2]
[333900995,1722613848886,-1070.02,0.0001863,2]
[333900996,1722613848896,-500.0,0.0001863,2]
[333900997,1722613848905,-2195.99,0.0001863,2]
[333900998,1722613848915,-890.59,0.0001863,2]
[333900999,1722613848925,-1468.99,0.0001863,2]
[333901000,1722613848935,-500.0,0.0001863,2]
[333901001,1722613848945,-878.02,0.0001863,2]
[333901002,1722613848954,-641.69324461,0.0001863,2]
[333901003,1722613848964,-1596.59,0.0001863,2]
[333901004,1722613848974,-3139.78,0.0001863,2]
[333901005,1722613848984,-1720.28,0.0001863,2]
[333901006,1722613848994,-1440.67,0.0001863,2]
[333901007,1722613849004,-500.0,0.0001863,2]
[333901008,1722613849013,-669.26,0.0001863,2]
[333901009,1722613849023,-1717.75,0.0001863,2]
[333901010,1722613849033,-500.0,0.0001863,2]
[333901011,1722613849043,-500.0,0.0001863,2]
[333901012,1722613849052,-500.0,0.0001863,2]
[333901013,1722613849062,-500.0,0.0001863,2]
[333901014,1722613849075,-1961.82,0.0001863,2]
[333901015,1722613849084,-1009.15,0.0001863,2]
[333901016,1722613849094,-563.77401,0.0001863,2]
[333901017,1722613849104,-500.0,0.0001863,2]
[333901018,1722613849113,-563.77401,0.0001863,2]
[333901019,1722613849123,-563.77401,0.0001863,2]
[333901020,1722613849133,-2099.85,0.0001863,2]
[333901021,1722613849143,-557.3,0.0001863,2]
[333901022,1722613849153,-500.0,0.0001863,2]
[333901023,1722613849162,-3501.4,0.0001863,2]
[333901024,1722613849172,-500.0,0.0001863,2]
[333901025,1722613849181,-563.77401,0.0001863,2]
[333901026,1722613849191,-563.77401,0.0001863,2]
[333901027,1722613849201,-151.0,0.0001863,2]
[333901028,1722613849210,-563.77401,0.0001863,2]
[333901029,1722613849220,-204.50819431,0.0001863,2]
[333901030,1722613850063,-1861.97180569,0.0001863,2]
[333901031,1722613850078,-500.0,0.0001863,2]
[333901032,1722613850088,-151.0,0.0001863,2]
[333901033,1722613850097,-151.0,0.0001863,2]
[333901034,1722613850107,-500.0,0.0001863,2]
[333901035,1722613850116,-500.0,0.0001863,2]
[333901036,1722613850125,-151.0,0.0001863,2]
[333901037,1722613850135,-1071.51,0.0001863,2]
[333901038,1722613850144,-512.74,0.0001863,2]
[333901039,1722613850153,-2322.08,0.0001863,2]
[333901040,1722613850163,-500.0,0.0001863,2]
[333901041,1722613850173,-500.0,0.0001863,2]
[333901042,1722613850183,-1412.98,0.0001863,2]
[333901043,1722613850192,-500.0,0.0001863,2]
[333901044,1722613850201,-1309.99,0.0001863,2]
[333901045,1722613850211,-500.0,0.0001863,2]
[333901046,1722613850221,-1021.43,0.0001863,2]
[333901047,1722613850231,-3693.2,0.0001863,2]
[333901048,1722613850241,-1569.66,0.0001863,2]
[333901049,1722613850251,-4070.1,0.0001863,2]
[333901050,1722613850260,-500.0,0.0001863,2]
[333901051,1722613850269,-500.0,0.0001863,2]
[333901052,1722613850279,-191.91528984,0.0001863,2]
[333901053,1722613850288,-500.0,0.0001863,2]
[333901054,1722613850297,-500.0,0.0001863,2]
[333901055,1722613850307,-841.29,0.0001863,2]
[333901056,1722613850316,-3137.59,0.0001863,2]
[333901057,1722613850329,-500.0,0.0001863,2]
[333901058,1722613850338,-1000.0,0.0001863,2]
[333901059,1722613850347,-500.0,0.0001863,2]
[333901060,1722613850356,-1260.17,0.0001863,2]
[333901061,1722613850365,-500.0,0.0001863,2]
[333901062,1722613850375,-929.81,0.0001863,2]
[333901063,1722613850384,-370.56290449,0.0001863,2]
[333901064,1722613850399,-129.43709551,0.0001863,2]
[333901065,1722613850409,-561.16312649,0.0001863,2]
[333901066,1722613850420,-898.31109779,0.0001863,2]
[333901067,1722613850432,-277.1650348,0.0001863,2]
[333901068,1722613850446,-539.44800582,0.0001863,2]
[333901069,1722613850458,-843.9327351,0.0001863,2]
[333901070,1722613850467,-500.0,0.0001863,2]
[333901071,1722613850476,-2581.9,0.0001863,2]
[333901072,1722613850485,-500.0,0.0001863,2]
[333901073,1722613850495,-1389.69,0.0001863,2]
[333901074,1722613850504,-500.0,0.0001863,2]
[333901075,1722613850513,-2329.78,0.0001863,2]
[333901076,1722613850523,-2816.8,0.0001863,2]
[333901077,1722613850532,-894.17,0.0001863,2]
[333901078,1722613850542,-2878.21,0.0001863,2]
[333901079,1722613850552,-1283.0,0.0001863,2]
[333901080,1722613850561,-538.91,0.0001863,2]
[333901081,1722613850573,-498.53550072,0.0001863,2]
[333901082,1722613850582,-500.0,0.0001863,2]
[333901083,1722613850591,-500.0,0.0001863,2]
[333901084,1722613850601,-500.0,0.0001863,2]
[333901085,1722613850611,-500.0,0.0001863,2]
[333901086,1722613850620,-3036.86,0.0001863,2]
[333901087,1722613850629,-608.3,0.0001863,2]
[333901088,1722613850639,-500.0,0.0001863,2]
[333901089,1722613850649,-579.04,0.0001863,2]
[333901090,1722613850658,-500.0,0.0001863,2]
[333901091,1722613850667,-2238.51,0.0001863,2]
[333901092,1722613850677,-534.6,0.0001863,2]
[333901093,1722613850686,-500.0,0.0001863,2]
[333901094,1722613851149,-1290.74,0.0001863,2]
[333901095,1722613851167,-500.0,0.0001863,2]
[333901096,1722613851177,-1155.88,0.0001863,2]
[333901097,1722613851188,-500.0,0.0001863,2]
[333901098,1722613851198,-854.09,0.0001863,2]
[333901099,1722613851210,-500.0,0.0001863,2]
[333901100,1722613851220,-500.0,0.0001863,2]
[333901101,1722613851230,-1316.17,0.0001863,2]
[333901102,1722613851240,-3820.74,0.0001863,2]
[333901103,1722613851250,-500.0,0.0001863,2]
[333901104,1722613851260,-500.0,0.0001863,2]
[333901105,1722613851270,-500.0,0.0001863,2]
[333901106,1722613851280,-500.0,0.0001863,2]
[333901107,1722613851290,-2382.3,0.0001863,2]
[333901108,1722613851300,-500.0,0.0001863,2]
[333901109,1722613851311,-1925.57,0.0001863,2]
[333901110,1722613851324,-500.0,0.0001863,2]
[333901111,1722613851342,-1032.46,0.0001863,2]
[333901112,1722613851352,-500.0,0.0001863,2]
[333901113,1722613851361,-2436.55,0.0001863,2]
[333901114,1722613851371,-500.0,0.0001863,2]
[333901115,1722613851382,-1741.41,0.0001863,2]
[333901116,1722613851392,-500.0,0.0001863,2]
[333901117,1722613851402,-500.0,0.0001863,2]
[333901118,1722613851412,-500.0,0.0001863,2]
[333901119,1722613851422,-3760.88,0.0001863,2]
[333901120,1722613851433,-151.0,0.0001863,2]
[333901121,1722613851443,-151.0,0.0001863,2]
[333901122,1722613851452,-2904.74,0.0001863,2]
[333901123,1722613851462,-2229.41,0.0001863,2]
[333901124,1722613851472,-939.97,0.0001863,2]
[333901125,1722613851482,-1952.16,0.0001863,2]
[333901126,1722613851491,-500.0,0.0001863,2]
[333901127,1722613851501,-151.0,0.0001863,2]
[333901128,1722613851510,-151.0,0.0001863,2]
[333901129,1722613851520,-151.0,0.0001863,2]
[333901130,1722613851529,-563.62569798,0.0001863,2]
[333901131,1722613851539,-500.0,0.0001863,2]
[333901132,1722613851548,-500.0,0.0001863,2]
[333901133,1722613851558,-500.0,0.0001863,2]
[333901134,1722613851568,-521.13,0.0001863,2]
[333901135,1722613851578,-1055.6,0.0001863,2]
[333901136,1722613851587,-500.0,0.0001863,2]
[333901137,1722613851597,-2490.63,0.0001863,2]
[333901138,1722613851606,-500.0,0.0001863,2]
[333901139,1722613851616,-1009.79,0.0001863,2]
[333901140,1722613851625,-500.0,0.0001863,2]
[333901141,1722613851635,-500.0,0.0001863,2]
[333901142,1722613851644,-500.0,0.0001863,2]
[333901143,1722613851654,-2808.45,0.0001863,2]
[333901144,1722613851664,-151.0,0.0001863,2]
[333901145,1722613851674,-500.0,0.0001863,2]
[333901146,1722613851683,-500.0,0.0001863,2]
[333901147,1722613851693,-864.79,0.0001863,2]
[333901148,1722613851703,-500.0,0.0001863,2]
[333901149,1722613851713,-500.0,0.0001863,2]
[333901150,1722613851722,-151.0,0.0001863,2]
[333901151,1722613851732,-151.0,0.0001863,2]
[333901152,1722613851742,-500.0,0.0001863,2]
[333901153,1722613851753,-1209.55,0.0001863,2]
[333901154,1722613851763,-500.0,0.0001863,2]
[333901155,1722613851777,-151.0,0.0001863,2]
[333901156,1722613851792,-1133.3,0.0001863,2]
[333901157,1722613851802,-500.0,0.0001863,2]
[333901158,1722613851813,-1002.38,0.0001863,2]
[333901159,1722613851823,-197.701728,0.0001863,2]
[333901160,1722613851833,-500.0,0.0001863,2]
[333901161,1722613851843,-1997.37,0.0001863,2]
[333901162,1722613851854,-1730.15,0.0001863,2]
[333901163,1722613851864,-151.0,0.0001863,2]
[333901164,1722613851873,-500.0,0.0001863,2]
[333901165,1722613851883,-500.0,0.0001863,2]
[333901166,1722613851893,-151.0,0.0001863,2]
[333901167,1722613851903,-1773.39,0.0001863,2]
[333901168,1722613851912,-500.0,0.0001863,2]
[333901169,1722613851921,-500.0,0.0001863,2]
[333901170,1722613851931,-500.0,0.0001863,2]
[333901171,1722613851941,-151.0,0.0001863,2]
[333901172,1722613851951,-151.0,0.0001863,2]
[333901173,1722613851960,-562.4,0.0001863,2]
[333901174,1722613851970,-500.0,0.0001863,2]
[333901175,1722613851979,-500.0,0.0001863,2]
[333901176,1722613851989,-707.12,0.0001863,2]
[333901177,1722613851999,-1225.65,0.0001863,2]
[333901178,1722613852008,-1258.06,0.0001863,2]
[333901179,1722613852018,-4013.5,0.0001863,2]
[333901180,1722613852027,-3006.45,0.0001863,2]
[333901181,1722613852037,-1443.07,0.0001863,2]
[333901182,1722613852048,-500.0,0.0001863,2]
[333901183,1722613852058,-682.65,0.0001863,2]
[333901184,1722613852068,-859.56,0.0001863,2]
[333901185,1722613852077,-500.0,0.0001863,2]
[333901186,1722613852087,-3019.3,0.0001863,2]
[333901187,1722613852096,-500.0,0.0001863,2]
[333901188,1722613852105,-2516.76,0.0001863,2]
[333901189,1722613852115,-500.0,0.0001863,2]
[333901190,1722613852124,-4927.12,0.0001863,2]
[333901191,1722613852134,-151.0,0.0001863,2]
[333901192,1722613852144,-151.0,0.0001863,2]
[333901193,1722613852154,-1603.7,0.0001863,2]
[333901194,1722613852163,-500.0,0.0001863,2]
[333901195,1722613852173,-1655.46,0.0001863,2]
[333901196,1722613852182,-2685.02,0.0001863,2]
[333901197,1722613852192,-500.0,0.0001863,2]
[333901198,1722613852201,-1827.45,0.0001863,2]
[333901199,1722613852210,-500.0,0.0001863,2]
[333901200,1722613852220,-357.19932299,0.0001863,2]